bitfinex-derivatives/quotes_BNBF0:USTF0_20250329
["timestamp","ask_amount","ask_price","bid_price","bid_amount"]
[1743231493082,0.32940246,607.16,605.92,4.12407657]
[1743231493387,0.28697244,607.14,605.92,4.12407657]
[1743231496188,0.32940246,607.16,605.92,4.12407657]
[1743231496389,0.28696652,607.13,605.92,4.12407657]
[1743231499090,0.32940246,607.16,605.92,4.12407657]
[1743231499393,0.28694523,607.13,605.92,4.12407657]
[1743231502092,0.32940246,607.16,605.92,4.12407657]
[1743231502391,0.28694523,607.13,605.92,4.12407657]
[1743231505088,0.32940246,607.16,605.92,4.12407657]
[1743231505594,0.28685417,607.15,605.92,4.12407657]
[1743231508093,0.32940246,607.16,605.92,4.12407657]
[1743231508397,0.2869405,607.15,605.92,4.12407657]
[1743231510999,0.59010556,607.15,605.92,4.12407657]
[1743231511296,0.32940246,607.16,605.93,0.29508475]
[1743231511597,0.32940246,607.16,605.94,0.33006568]
[1743231511798,0.32940246,607.16,605.95,0.29508027]
[1743231512000,0.32940246,607.16,605.96,0.33005478]
[1743231512198,0.32940246,607.16,605.97,0.29508027]
[1743231512398,0.32940246,607.16,605.98,0.33004389]
[1743231512598,0.32940246,607.16,605.99,0.29508027]
[1743231512799,0.32940246,607.16,606.0,0.330033]
[1743231513099,0.32940246,607.16,606.01,0.29508027]
[1743231513295,0.32940246,607.16,606.02,0.33002211]
[1743231513494,0.32940246,607.16,606.03,0.29508027]
[1743231513694,0.32940246,607.16,606.04,0.33001122]
[1743231514000,0.32940246,607.16,606.05,0.29508027]
[1743231514202,0.32940246,607.16,606.06,0.33000033]
[1743231514395,0.32940246,607.16,606.07,0.29508027]
[1743231514595,0.32940246,607.16,606.08,0.32998944]
[1743231514800,0.32940246,607.16,606.09,0.29505027]
[1743231514996,0.32940246,607.16,606.1,0.32997855]
[1743231515200,0.32940246,607.16,606.11,0.29505027]
[1743231515401,0.32940246,607.16,606.12,0.32996766]
[1743231515602,0.32940246,607.16,606.13,0.29505027]
[1743231515801,0.32940246,607.16,606.14,0.32995677]
[1743231516002,0.32940246,607.16,606.15,0.29505027]
[1743231520404,0.28686954,607.32,606.16,0.32994588]
[1743231520605,0.28686954,607.32,606.17,0.29505027]
[1743231520804,0.28686954,607.32,606.18,0.329935]
[1743231521006,0.28686954,607.32,606.19,0.29505027]
[1743231521207,0.28686954,607.32,606.2,0.32992411]
[1743231521401,0.28686954,607.32,606.21,0.29505027]
[1743231521603,0.28686954,607.32,606.22,0.32991323]
[1743231521903,0.28686954,607.32,606.23,0.29505027]
[1743231522106,0.28686954,607.32,606.23,0.62495806]
[1743231522402,0.28686954,607.32,606.24,0.92905027]
[1743231522601,0.28686954,607.32,606.25,0.29505027]
[1743231523107,2.44269362,607.78,606.25,0.29505027]
[1743231523401,0.28678916,607.32,606.25,0.29505027]
[1743231523807,0.32907726,607.76,606.25,0.29505027]
[1743231524006,0.30290236,607.75,606.25,0.29505027]
[1743231524199,0.32909351,607.73,606.25,0.29505027]
[1743231524399,0.30290236,607.72,606.25,0.29505027]
[1743231524601,0.32910434,607.71,606.25,0.29505027]
[1743231524807,0.30290236,607.7,606.25,0.29505027]
[1743231525008,0.32911517,607.69,606.25,0.29505027]
[1743231525209,0.30290236,607.68,606.25,0.29505027]
[1743231525506,0.329126,607.67,606.25,0.29505027]
[1743231525702,0.30290236,607.66,606.25,0.29505027]
[1743231525905,0.63203911,607.65,606.26,0.29511427]
[1743231526104,0.63204453,607.64,606.25,0.29511427]
[1743231526306,0.32914767,607.63,606.27,0.29511427]
[1743231526503,0.30290228,607.62,606.28,0.29511427]
[1743231526704,0.3291585,607.61,606.25,0.29511427]
[1743231526906,0.3291585,607.61,606.29,0.29511427]
[1743231527106,0.30290228,607.6,606.26,0.29511427]
[1743231527408,0.32916934,607.59,606.27,0.29511427]
[1743231527607,0.30290228,607.58,606.25,0.29511427]
[1743231527804,0.32918017,607.57,606.28,0.29511427]
[1743231528006,0.30290228,607.56,606.29,0.29511427]
[1743231528207,0.32919101,607.55,606.29,0.29511427]
[1743231528407,0.30290228,607.54,606.3,0.29511427]
[1743231528606,0.30290228,607.54,606.25,0.29511427]
[1743231528807,0.30290228,607.54,606.26,0.29511427]
[1743231529110,0.30290228,607.54,606.27,0.29511427]
[1743231529308,0.28681634,607.53,606.27,0.29511427]
[1743231529510,0.30290228,607.52,606.28,0.29511427]
[1743231529705,0.30290228,607.52,606.25,0.29511427]
[1743231529910,0.30290228,607.52,606.29,0.29511427]
[1743231530109,0.30290228,607.52,606.3,0.29511427]
[1743231530409,0.30290228,607.52,606.25,0.29511427]
[1743231530610,0.30290228,607.52,606.26,0.29511427]
[1743231530809,0.30290228,607.52,606.25,0.29511427]
[1743231531010,0.30290228,607.52,606.26,0.29511427]
[1743231531210,0.30290228,607.52,606.25,0.29511427]
[1743231531507,0.30290228,607.52,606.26,0.29511427]
[1743231531811,0.30290228,607.52,606.25,0.29511427]
[1743231532011,0.30290228,607.52,606.27,0.29511427]
[1743231532211,0.30290228,607.52,606.28,0.29511427]
[1743231532414,0.2868187,607.51,606.25,0.29511427]
[1743231532608,0.30290228,607.5,606.25,0.29511427]
[1743231532813,0.30287929,607.49,606.26,0.29505927]
[1743231533111,0.30287929,607.5,606.26,0.32989146]
[1743231533415,0.2868187,607.51,606.27,0.572]
[1743231533615,0.30286925,607.5,606.28,0.62490395]
[1743231533815,0.30286925,607.5,606.29,0.29502337]
[1743231535009,0.2868187,607.51,606.3,0.3298697]
[1743231535213,0.32919101,607.55,606.3,0.3298697]
[1743231537820,0.32919101,607.55,606.31,0.29478271]
[1743231538020,0.32919101,607.55,606.33,0.32985338]
[1743231538419,0.32919101,607.55,606.34,0.29478271]
[1743231538619,0.32919101,607.55,606.35,0.3298425]
[1743231538815,0.32919101,607.55,606.36,0.29478271]
[1743231539022,0.32919101,607.55,606.37,0.32983162]
[1743231539315,0.32919101,607.55,606.38,0.29478271]
[1743231539516,0.32919101,607.55,606.39,0.32982074]
[1743231539721,0.32919101,607.55,606.4,0.29478271]
[1743231540022,0.32919101,607.55,606.41,0.32980986]
[1743231540219,0.32919101,607.55,606.42,0.29478271]
[1743231540516,0.32919101,607.55,606.43,0.32979898]
[1743231540721,0.32919101,607.55,606.44,0.29478271]
[1743231540917,0.32919101,607.55,606.45,0.32978811]
[1743231541621,0.32919101,607.55,606.46,0.9287965]
[1743231541920,0.32919101,607.55,606.47,0.32977723]
[1743231543021,0.32919101,607.55,606.48,0.919]
[1743231543226,0.32919101,607.55,606.49,0.32976636]
[1743231544519,0.28673835,607.54,606.49,0.32976636]
[1743231547023,0.28673835,607.54,606.5,0.809]
[1743231550120,0.32919101,607.55,606.5,0.809]
[1743231550523,0.28674544,607.53,606.5,0.809]
[1743231553119,0.32919101,607.55,606.5,0.809]
[1743231553624,0.28665686,607.54,606.5,0.809]
[1743231556126,0.32919101,607.55,606.5,0.809]
[1743231556426,0.28674544,607.53,606.5,0.809]
[1743231558129,0.30286391,607.52,606.5,0.809]
[1743231559429,0.30286391,607.51,606.5,0.809]
[1743231559623,0.28678797,607.51,606.5,0.809]
[1743231559824,0.30286391,607.5,606.5,0.809]
[1743231562135,0.30286391,607.5,606.49,0.32976636]
[1743231563838,0.30286391,607.5,606.5,0.922]
[1743231564836,0.28678797,607.51,606.5,0.922]
[1743231565035,0.30290485,607.49,606.5,0.922]
[1743231565236,0.30290485,607.5,606.5,0.922]
[1743231565430,0.30290485,607.49,606.5,0.922]
[1743231565629,0.28679034,607.48,606.5,0.922]
[1743231565936,0.30290485,607.47,606.5,0.922]
[1743231566132,0.30290485,607.47,606.51,0.623]
[1743231568539,0.58969755,607.46,606.51,0.623]
[1743231568738,0.30290485,607.45,606.51,0.623]
[1743231570038,0.2867927,607.46,606.51,0.623]
[1743231570239,0.30290072,607.45,606.51,0.623]
[1743231570437,0.30290072,607.45,606.52,0.894]
[1743231571339,0.30290072,607.54,606.52,0.894]
[1743231571539,0.5896946,607.44,606.52,0.894]
[1743231571739,0.30290072,607.43,606.52,0.894]
[1743231572036,0.30290072,607.42,606.52,0.894]
[1743231572238,0.30290072,607.54,606.52,0.894]
[1743231572436,0.30290072,607.41,606.52,0.894]
[1743231572639,0.32919101,607.55,606.52,0.894]
[1743231572940,0.30290624,607.54,606.52,0.894]
[1743231573138,0.5896316,607.54,606.52,1.754]
[1743231573438,0.30290624,607.53,606.52,1.754]
[1743231574340,0.30290624,607.54,606.52,1.754]
[1743231574538,0.28678443,607.52,606.52,1.754]
[1743231574938,0.30290624,607.51,606.52,1.754]
[1743231576843,0.28678443,607.52,606.52,1.754]
[1743231577149,0.32919101,607.55,606.52,1.754]
[1743231577446,0.28675016,607.51,606.52,1.754]
[1743231580148,0.32919101,607.55,606.52,1.754]
[1743231580345,0.30283007,607.54,606.52,1.754]
[1743231580542,0.28675016,607.5,606.52,1.754]
[1743231582145,0.3028149,607.49,606.53,0.29516041]
[1743231583352,0.3028149,607.54,606.53,0.29516041]
[1743231583546,0.3028149,607.53,606.53,0.29516041]
[1743231583852,0.3028149,607.54,606.53,0.29516041]
[1743231584055,0.3028149,607.52,606.53,0.29516041]
[1743231584249,0.3028149,607.53,606.53,0.29516041]
[1743231584451,0.3028149,607.51,606.53,0.29516041]
[1743231584652,0.32919101,607.55,606.53,0.29516041]
[1743231584852,0.30279859,607.54,606.53,0.29516041]
[1743231586851,0.32919101,607.55,606.53,0.29516041]
[1743231590162,0.32919101,607.55,606.53,0.94216041]
[1743231590362,0.32919101,607.55,606.54,0.29516041]
[1743231594973,0.32919101,607.55,606.53,0.647]
[1743231597676,0.32919101,607.55,606.53,1.39]
[1743231598478,0.32919101,607.55,606.53,2.058]
[1743231600179,2.51228373,608.46,606.54,0.32973917]
[1743231600375,0.32870948,608.44,606.55,0.2945432]
[1743231600674,0.32870948,608.44,606.56,0.3297283]
[1743231600675,0.30265813,608.43,606.56,0.3297283]
[1743231600882,0.32872569,608.41,606.56,0.3297283]
[1743231601175,0.30265813,608.4,606.57,0.2945432]
[1743231601381,0.3287419,608.38,606.58,0.32971743]
[1743231601682,0.30265813,608.37,606.59,0.2945432]
[1743231601975,0.32875811,608.35,606.6,0.32970656]
[1743231602279,0.30265813,608.34,606.61,0.2945432]
[1743231602476,0.32877432,608.32,606.62,0.32969569]
[1743231602681,0.30265813,608.31,606.63,0.2945432]
[1743231602980,0.32879054,608.29,606.64,0.32968482]
[1743231603182,0.30265813,608.28,606.65,0.2945432]
[1743231603380,0.32880135,608.27,606.66,0.32967395]
[1743231603782,0.30265813,608.26,606.67,0.2945432]
[1743231603982,0.32881216,608.25,606.68,0.32966308]
[1743231604183,0.30265813,608.24,606.69,0.2945432]
[1743231604376,0.30265813,608.24,606.7,0.32965221]
[1743231604580,0.32882297,608.23,606.71,0.2945432]
[1743231604881,0.30265813,608.22,606.72,0.32964135]
[1743231605077,0.32883379,608.21,606.72,0.32964135]
[1743231605282,0.30265813,608.2,606.73,0.2945432]
[1743231605483,0.3288446,608.19,606.74,0.32963048]
[1743231605682,0.30265813,608.18,606.75,0.2945432]
[1743231605884,0.32885541,608.17,606.76,0.32961961]
[1743231606182,0.30265813,608.16,606.77,0.2945432]
[1743231606380,0.32886623,608.15,606.78,0.32960875]
[1743231606581,0.30265813,608.14,606.79,0.2945432]
[1743231606781,0.30265813,608.13,606.79,0.2945432]
[1743231606978,0.32888245,608.12,606.78,0.32960875]
[1743231607178,0.63154058,608.12,606.78,0.32960875]
[1743231607383,0.30265813,608.11,606.78,0.32960875]
[1743231607683,0.32889868,608.09,606.78,0.32960875]
[1743231607878,0.30265813,608.08,606.78,0.32960875]
[1743231608081,0.3289095,608.07,606.78,0.32960875]
[1743231608382,0.30265813,608.06,606.78,0.32960875]
[1743231608683,0.32892031,608.05,606.78,0.32960875]
[1743231608880,0.30265813,608.04,606.78,0.32960875]
[1743231609084,0.32893113,608.03,606.78,0.32960875]
[1743231609281,0.30265813,608.02,606.78,0.32960875]
[1743231609478,0.32894195,608.01,606.78,0.32960875]
[1743231609685,0.30265813,608.0,606.78,0.32960875]
[1743231609985,0.32895277,607.99,606.53,1.411]
[1743231610386,0.30265813,607.98,606.53,1.411]
[1743231610580,0.32896901,607.96,606.53,1.411]
[1743231610780,0.30265813,607.95,606.53,1.411]
[1743231610982,0.32898524,607.93,606.53,1.411]
[1743231611285,0.30265813,607.92,606.53,1.411]
[1743231611482,0.32900148,607.9,606.53,1.411]
[1743231611687,0.30265813,607.89,606.53,1.411]
[1743231611887,0.3290123,607.88,606.53,1.411]
[1743231612186,0.30265813,607.87,606.53,1.411]
[1743231612391,0.32902313,607.86,606.53,1.411]
[1743231612687,0.30265813,607.85,606.53,1.411]
[1743231612889,0.32903395,607.84,606.53,2.212]
[1743231613088,0.30265813,607.83,606.53,2.212]
[1743231613289,0.32904478,607.82,606.53,2.212]
[1743231613489,0.30265813,607.81,606.53,2.212]
[1743231613690,0.63170832,607.81,606.53,2.212]
[1743231613989,0.30265813,607.8,606.53,2.212]
[1743231615792,0.32905019,607.81,606.53,2.212]
[1743231615986,0.30279233,607.8,606.53,2.212]
[1743231616487,0.28669465,607.79,606.54,0.29508106]
[1743231616692,0.30279233,607.78,606.54,0.29508106]
[1743231619088,0.30279233,607.78,606.53,2.212]
[1743231619288,0.30279233,607.78,606.54,0.29508405]
[1743231619494,0.28669701,607.77,606.53,2.212]
[1743231619793,0.30279233,607.76,606.53,2.212]
[1743231620093,0.30279233,607.76,606.54,0.29508432]
[1743231620294,0.30279233,607.76,606.53,2.788]
[1743231622391,0.30279233,607.78,606.53,2.788]
[1743231622593,0.5894917,607.75,606.53,2.788]
[1743231622793,0.28669937,607.75,606.53,2.788]
[1743231622994,0.30279233,607.74,606.53,2.788]
[1743231623891,0.30279233,607.74,606.54,0.32973917]
[1743231624093,0.28669937,607.75,606.55,0.29495367]
[1743231624296,0.28669937,607.75,606.56,0.3297283]
[1743231624496,0.28669937,607.75,606.57,0.29495367]
[1743231624698,0.28669937,607.75,606.58,0.32971743]
[1743231625089,0.28669937,607.75,606.59,0.29495367]
[1743231625294,0.32906102,607.79,606.6,0.32970656]
[1743231625497,0.28665804,607.74,606.6,0.32970656]
[1743231627497,0.30278047,607.73,606.6,0.32970656]
[1743231627901,0.30278047,607.73,606.61,0.621]
[1743231628400,0.30278047,607.78,606.61,0.621]
[1743231628600,0.28671709,607.72,606.61,0.621]
[1743231628900,0.30278047,607.71,606.61,0.621]
[1743231629599,0.32910975,607.7,606.61,0.621]
[1743231629800,0.30278047,607.69,606.61,0.621]
[1743231630000,0.32912058,607.68,606.61,0.621]
[1743231630302,0.30278047,607.67,606.61,0.621]
[1743231630904,0.30282855,607.66,606.61,0.621]
[1743231631105,0.30282855,607.67,606.61,0.621]
[1743231631300,0.28672418,607.65,606.61,0.621]
[1743231631497,0.30282855,607.64,606.61,0.621]
[1743231632099,0.30282855,607.64,606.62,0.6]
[1743231634305,0.30282855,607.67,606.62,0.6]
[1743231634504,0.30282855,607.63,606.63,0.6]
[1743231634704,0.30282855,607.66,606.63,0.6]
[1743231634908,0.30282855,607.62,606.63,0.6]
[1743231635206,0.30282855,607.61,606.63,0.6]
[1743231635405,0.28673953,607.61,606.63,0.6]
[1743231635601,0.30282855,607.6,606.63,0.6]
[1743231637602,0.28671827,607.59,606.63,0.6]
[1743231638007,0.30282855,607.58,606.63,0.6]
[1743231640606,0.58954918,607.57,606.63,0.6]
[1743231640905,0.30282855,607.56,606.63,0.6]
[1743231643107,0.32919101,607.55,606.63,0.6]
[1743231643501,0.30282855,607.54,606.63,0.6]
[1743231643702,0.63202498,607.54,606.63,0.6]
[1743231643905,0.30282855,607.53,606.63,0.6]
[1743231644608,0.30282855,607.53,606.64,0.704]
[1743231646504,0.28677261,607.52,606.64,0.704]
[1743231646703,0.30282855,607.51,606.64,0.704]
[1743231648911,0.28677261,607.52,606.64,0.704]
[1743231649304,0.32919643,607.54,606.64,0.704]
[1743231649505,0.28673481,607.51,606.64,0.704]
[1743231649812,0.32919643,607.54,606.64,0.704]
[1743231653415,0.28654239,607.53,606.64,0.704]
[1743231655216,0.32919643,607.54,606.64,0.704]
[1743231655516,0.28674426,607.52,606.64,0.704]
[1743231656818,0.28674426,607.52,606.65,0.692]
[1743231658212,0.32919643,607.54,606.65,0.692]
[1743231658619,0.28674308,607.51,606.65,1.379]
[1743231660422,0.30288699,607.5,606.65,1.379]
[1743231662525,0.28674308,607.51,606.65,1.379]
[1743231662725,0.30289518,607.49,606.65,1.379]
[1743231662927,0.30289518,607.5,606.65,1.379]
[1743231663131,0.30289518,607.49,606.65,1.379]
[1743231663327,0.30289518,607.5,606.65,1.379]
[1743231663526,0.30289518,607.49,606.65,1.379]
[1743231663732,0.30289518,607.5,606.65,1.379]
[1743231663930,0.30289518,607.49,606.65,1.379]
[1743231664126,0.30289518,607.5,606.65,1.379]
[1743231664432,0.30289518,607.49,606.65,1.379]
[1743231664628,0.58967016,607.48,606.65,1.379]
[1743231664831,0.30289518,607.47,606.65,1.379]
[1743231667630,0.30289518,607.46,606.65,1.379]
[1743231668134,0.30289518,607.45,606.65,1.379]
[1743231675134,0.30285308,607.44,606.65,1.37169294]
[1743231675433,0.30285308,607.45,606.65,0.687]
[1743231676542,0.28675253,607.44,606.65,0.687]
[1743231676843,0.58960561,607.44,606.65,0.687]
[1743231677046,0.30285308,607.43,606.65,0.687]
[1743231678648,0.3028509,607.42,606.65,0.687]
[1743231678846,0.28675253,607.44,606.65,0.687]
[1743231678847,0.3028509,607.43,606.65,0.687]
[1743231679148,0.3028509,607.42,606.65,0.687]
[1743231679442,0.32919643,607.54,606.65,0.687]
[1743231679648,0.28675489,607.43,606.65,0.687]
[1743231679847,0.30285003,607.42,606.65,0.687]
[1743231680245,0.30285003,607.41,606.65,0.687]
[1743231680549,0.30285003,607.53,606.65,0.687]
[1743231680748,0.30285003,607.52,606.65,0.687]
[1743231680948,0.30285003,607.53,606.65,0.687]
[1743231681550,0.28674308,607.52,606.65,0.687]
[1743231681751,0.30285003,607.51,606.65,0.687]
[1743231682450,0.30285003,607.53,606.65,0.687]
[1743231682650,0.30285003,607.52,606.65,0.687]
[1743231682949,0.30285003,607.53,606.65,0.687]
[1743231683151,0.30285003,607.51,606.65,0.687]
[1743231683345,0.30283178,607.5,606.65,0.687]
[1743231683845,0.28674071,607.52,606.65,0.687]
[1743231684250,0.30282744,607.51,606.65,0.687]
[1743231685347,0.30282744,607.53,606.65,0.687]
[1743231685551,0.30282744,607.52,606.65,0.687]
[1743231685850,0.30282744,607.53,606.65,0.687]
[1743231686450,0.28674071,607.52,606.65,1.395]
[1743231688052,0.30285269,607.51,606.65,1.395]
[1743231688456,0.30285269,607.53,606.65,1.395]
[1743231688754,0.30285269,607.52,606.65,1.395]
[1743231688951,0.30285269,607.53,606.65,1.395]
[1743231689152,0.30285269,607.52,606.65,1.395]
[1743231689452,0.2867478,607.52,606.65,1.395]
[1743231689653,0.30285269,607.51,606.65,1.395]
[1743231691454,0.28675016,607.5,606.65,1.395]
[1743231691752,0.30285269,607.49,606.65,1.395]
[1743231692151,0.30286463,607.48,606.65,1.395]
[1743231692352,0.30286463,607.49,606.65,2.147]
[1743231694355,0.30286463,607.53,606.65,2.147]
[1743231694551,0.28675725,607.48,606.65,2.147]
[1743231694757,0.30286463,607.47,606.65,2.147]
[1743231697556,0.30290315,607.53,606.65,2.147]
[1743231697757,0.28678088,607.46,606.65,2.147]
[1743231700157,0.32920726,607.52,606.65,2.147]
[1743231700359,0.30291238,607.51,606.65,2.147]
[1743231700558,0.28677852,607.45,606.65,2.147]
[1743231701656,0.30292342,607.44,606.65,2.147]
[1743231702661,0.28677852,607.45,606.65,2.147]
[1743231706165,0.32920726,607.52,606.65,2.147]
[1743231707462,0.28667812,607.51,606.65,2.147]
[1743231707662,0.63214633,607.5,606.65,2.147]
[1743231707861,0.63215175,607.49,606.65,2.147]
[1743231708166,0.30292823,607.48,606.65,2.147]
[1743231709366,0.32923436,607.47,606.65,2.147]
[1743231709667,0.30292823,607.46,606.65,2.147]
[1743231709866,0.3292452,607.45,606.65,2.147]
[1743231710069,0.30292823,607.44,606.65,2.147]
[1743231710268,0.32925604,607.43,606.65,2.147]
[1743231710568,0.30302617,607.42,606.65,2.147]
[1743231710765,0.32926688,607.41,606.65,2.147]
[1743231711164,0.30302617,607.4,606.65,2.147]
[1743231711362,0.32927772,607.39,606.65,2.147]
[1743231711668,0.30302617,607.38,606.65,2.147]
[1743231711870,0.32928857,607.37,606.65,2.147]
[1743231712063,0.30302617,607.36,606.65,2.147]
[1743231712266,0.32929941,607.35,606.65,2.147]
[1743231712464,0.30302617,607.34,606.65,2.147]
[1743231712765,0.32931025,607.33,606.65,2.147]
[1743231713070,0.30302617,607.32,606.65,2.147]
[1743231713269,0.3293211,607.31,606.65,2.147]
[1743231713569,0.30302617,607.3,606.65,2.147]
[1743231713770,0.63235269,607.3,606.65,2.147]
[1743231713970,0.30302617,607.29,606.65,2.147]
[1743231715471,0.28685653,607.28,606.65,2.147]
[1743231715666,0.30302617,607.27,606.65,2.147]
[1743231718773,0.28684944,607.26,606.65,2.147]
[1743231718971,0.58987561,607.26,606.65,2.147]
[1743231719170,0.28684944,607.26,606.65,2.147]
[1743231719373,0.30302617,607.25,606.65,2.147]
[1743231720175,0.3030081,607.24,606.65,2.147]
[1743231720374,0.3030081,607.25,606.65,2.147]
[1743231720568,0.3030081,607.23,606.65,2.147]
[1743231720769,0.3030081,607.24,606.65,2.147]
[1743231720967,0.3030081,607.22,606.65,2.147]
[1743231721171,0.3030081,607.21,606.65,2.147]
[1743231721371,0.30306038,607.2,606.65,2.147]
[1743231721571,0.32936991,607.22,606.65,2.147]
[1743231721572,0.58994056,607.21,606.65,2.147]
[1743231721772,0.30306038,607.19,606.65,2.147]
[1743231721969,0.30306038,607.2,606.65,2.147]
[1743231723878,0.28688018,607.21,606.65,2.147]
[1743231724079,0.30306579,607.19,606.65,2.147]
[1743231724270,0.30306579,607.2,606.65,2.147]
[1743231724476,0.30306579,607.19,606.65,2.147]
[1743231724679,0.30306579,607.2,606.65,2.147]
[1743231724978,0.30306579,607.19,606.65,2.147]
[1743231725277,0.30306579,607.2,606.65,2.147]
[1743231725478,0.30306579,607.19,606.65,2.147]
[1743231725777,0.30306579,607.2,606.65,2.147]
[1743231725977,0.30306579,607.18,606.65,2.147]
[1743231726178,0.30306579,607.19,606.65,2.147]
[1743231726379,0.30306579,607.18,606.65,2.147]
[1743231726775,0.30306579,607.2,606.65,2.147]
[1743231726979,0.30306579,607.17,606.65,2.147]
[1743231727182,0.30306579,607.19,606.65,2.147]
[1743231727380,0.30306579,607.16,606.65,2.147]
[1743231727680,0.30306579,607.15,606.65,2.147]
[1743231729280,0.32941331,607.14,606.65,2.147]
[1743231729481,0.30306579,607.13,606.65,2.147]
[1743231729682,0.63248453,607.13,606.65,2.147]
[1743231729977,0.30306579,607.12,606.65,2.147]
[1743231730678,0.32941874,607.13,606.65,2.147]
[1743231731181,0.30311735,607.12,606.65,2.147]
[1743231731483,0.32941874,607.13,606.65,2.147]
[1743231731680,0.28682698,607.12,606.65,2.147]
[1743231736190,0.32941874,607.13,606.65,2.147]
[1743231736490,0.28689082,607.11,606.65,2.147]
[1743231739295,0.32941874,607.13,606.65,2.147]
[1743231739692,0.28689082,607.1,606.65,2.147]
[1743231742190,0.32941874,607.13,606.65,2.147]
[1743231742497,0.30307205,607.12,606.65,2.147]
[1743231742699,0.58989075,607.12,606.65,2.147]
[1743231742997,0.30307205,607.11,606.65,2.147]
[1743231743498,0.2868187,607.12,606.65,2.147]
[1743231747200,0.2868187,607.12,606.65,1.439]
[1743231747399,0.2868187,607.12,606.65,0.687]
[1743231750403,0.2868187,607.12,605.87,0.783]
[1743231751109,0.2868187,607.12,605.88,0.33009836]
[1743231753810,0.2868187,607.12,605.88,1.18509836]
[1743231754213,0.32941874,607.13,605.88,1.18509836]
[1743231754608,0.28698664,607.11,605.88,1.18509836]
[1743231755212,0.28698664,607.11,605.89,0.564]
[1743231755411,0.28698664,607.11,605.9,0.33008747]
[1743231757312,0.32941874,607.13,605.9,0.33008747]
[1743231757613,0.28700439,607.1,605.9,0.33008747]
[1743231759213,0.32944044,607.09,605.9,0.33008747]
[1743231763615,0.28705292,607.08,605.9,0.33008747]
[1743231763811,0.32945129,607.07,605.9,0.33008747]
[1743231766616,0.28705292,607.06,605.9,0.33008747]
[1743231766812,0.32946215,607.05,605.89,0.564]
[1743231769613,0.28708134,607.04,605.89,0.564]
[1743231769814,0.329473,607.03,605.89,0.564]
[1743231772522,0.28706239,607.02,605.89,0.564]
[1743231772820,0.32948386,607.01,605.89,0.564]
[1743231773422,0.32948386,607.01,605.9,0.74]
[1743231775618,0.28705174,607.0,605.9,0.74]
[1743231775822,0.32949471,606.99,605.9,0.74]
[1743231784527,0.28705174,606.98,605.9,0.74]
[1743231793335,2.50993003,607.11,605.9,0.74]
[1743231793636,0.28707897,606.97,605.9,0.74]
[1743231793841,2.50993003,607.11,605.9,0.74]
[1743231794742,0.28707424,607.1,605.9,0.74]
[1743231795143,0.28707424,607.1,605.9,1.525]
[1743231795640,2.50993003,607.06,605.9,1.525]
[1743231796543,0.28708489,607.05,605.9,1.525]
[1743231799241,2.50993003,607.58,605.9,1.525]
[1743231799644,0.28700913,607.04,605.9,1.525]
[1743231799941,2.50993003,607.58,605.9,1.525]
[1743231800544,0.28700439,607.57,605.9,1.525]
[1743231801345,0.28700439,607.57,605.9,2.256]
[1743231801640,2.50993003,607.34,605.9,2.256]
[1743231802546,0.28703043,607.33,605.9,2.256]
[1743231804145,2.50993003,607.29,605.9,2.256]
[1743231805447,0.3032143,607.28,605.9,2.256]
[1743231805750,0.59025302,607.28,605.9,2.256]
[1743231806852,0.30321627,607.27,605.9,2.256]
[1743231807450,0.30320302,607.26,605.9,2.256]
[1743231808050,0.30319005,607.25,605.9,2.256]
[1743231808452,0.30319005,607.26,605.9,2.256]
[1743231808747,0.30319005,607.24,605.9,2.256]
[1743231808952,0.30319005,607.25,605.9,2.256]
[1743231809250,0.30319005,607.24,605.9,2.256]
[1743231809647,0.30319005,607.25,605.9,2.256]
[1743231809847,0.30319005,607.23,605.9,2.256]
[1743231810147,0.30319005,607.24,605.9,2.256]
[1743231810349,0.28702096,607.26,605.9,2.256]
[1743231810350,0.30319005,607.23,605.9,2.256]
[1743231810549,0.30319005,607.25,605.9,2.256]
[1743231810751,0.30319005,607.22,605.9,2.256]
[1743231810947,0.30319005,607.24,605.9,2.256]
[1743231811147,0.30319005,607.23,605.9,2.256]
[1743231811552,0.30319005,607.22,605.9,2.256]